Cogmind - Beta 14 @@@ ROGUE MODE // 2025.04.27 @ 20:06:32 Player: DuckBoy Result: Destroyed by P-70 Sage with High-powered Shock Rifle Performance ------------- Evolutions (6) 3000 Regions Visited (12) 2400 Robots Destroyed (139) 695 Value Destroyed (5439) 5439 Prototype IDs (28) 560 Alien Tech Used (1) 200 Bonus (1650) 1650 TOTAL SCORE: 13944 Bonus ------- High Alert Combat Kills 203 Follower Combat Kills 147 Registered with UFD 300 Met Warlord at Base 500 MAIN.C Attacked Warlord 500 Cogmind --------- Core Integrity 0/1150 Matter 113/300 Energy 84/100 System Corruption 19% Temperature Cool (0) Movement Core (50) Location -4/Upper Caves Parts ------- > --- POWER (2) -------- (None) > --- PROPULSION (6) --- (None) > --- UTILITY (7) ------ Advanced Cooling System Improved Armor Integrity Analyzer Improved Armor Integrity Analyzer > --- WEAPON (4) ------- (None) > --- INVENTORY (5) ---- (None) Peak State ------------ > --- POWER ------------ Neutrino Core Micro Fission Core > --- PROPULSION ------- Armored Treads Myomer Leg Myomer Leg Antigrav System Improved Antigrav System Improved Gyrokinetic Inverter > --- UTILITY ---------- Improved Heat Sink High-capacity Storage Unit Structural Scanner Improved Target Analyzer Advanced Thermal Shield Improved Force Field A0-MCA's Component Scanner > --- WEAPON ----------- Phase Gun Matter Neutralizer Ripper Makeshift Spear > --- INVENTORY -------- Light Antimatter Reactor Light Antimatter Reactor Improved Dynamic Insulation System Dimensional Node Initializer High-powered Shock Rifle Vortex Rifle Vortex Rifle Heavy Proton Cannon Heavy Phase Cannon Matter Neutralizer Battle Cannon Vortex Catalyst Activator Improved Plasma Cutter CPS Tube Multitool Flamer Enhanced Flamer [Rating: 115] Favorites ----------- Power Neutrino Core Engine Makeshift Power Source Power Core Neutrino Core Reactor Light Antimatter Reactor Propulsion Spiked Treads Treads Spiked Treads Leg Myomer Leg Wheel Subdweller Monowheel Hover Unit Improved Gyrokinetic Inverter Utility High-capacity Storage Unit Device Advanced Cooling System Storage High-capacity Storage Unit Processor A0-MCA's Component Scanner Protection Makeshift Thermal Plating Weapon High-powered Shock Rifle Energy Gun High-powered Shock Rifle Energy Cannon Matter Neutralizer Ballistic Gun Autogun Ballistic Cannon Enhanced Gauss Cannon Launcher Subdweller Shrapnel Launcher Special Weapon Flamer Slashing Weapon Plasma Sword Piercing Weapon Makeshift Spear Build | -11 -10 -10 -7 -7 -5 -5 -5 -5 -4 -4 -4 -4 ------- Run | Yrd Mat Sub Rec Scr Fac Upp Upp War Pro Fac Upp Upp Slots Evolved 12 | . . . . . 10 . . . . 2 . . Power 1 | . . . . . 1 . . . . . . . Propulsion 4 | . . . . . 3 . . . . 1 . . Utility 5 | . . . . . 4 . . . . 1 . . Weapon 2 | . . . . . 2 . . . . . . . Parts Attached 272 | 6 14 14 . 15 44 44 6 1 45 24 54 5 Power 35 | 1 1 2 . 2 7 4 1 . 7 2 7 1 Engine 10 | 1 1 1 . 2 2 . . . 2 . 1 . Core 16 | . . 1 . . 5 4 1 . 4 1 . . Reactor 9 | . . . . . . . . . 1 1 6 1 Propulsion 58 | 2 3 2 . 5 7 9 2 . 12 8 8 . Treads 31 | 2 2 2 . 4 5 8 2 . 6 . . . Leg 10 | . . . . . . . . . 2 4 4 . Wheel 13 | . 1 . . 1 2 1 . . 4 1 3 . Hover 4 | . . . . . . . . . . 3 1 . Flight . | . . . . . . . . . . . . . Utility 86 | 1 6 1 . 6 12 17 1 . 16 8 17 1 Device 47 | . 2 . . 3 6 10 1 . 5 6 13 1 Storage 6 | 1 2 . . 1 1 . . . . . 1 . Processor 6 | . . . . 1 2 . . . . . 3 . Hackware . | . . . . . . . . . . . . . Protection 27 | . 2 1 . 1 3 7 . . 11 2 . . Artifact . | . . . . . . . . . . . . . Weapon 93 | 2 4 9 . 2 18 14 2 1 10 6 22 3 Energy Gun 25 | . . . . . 11 4 . . 2 1 7 . Energy Cannon 8 | . . . . . . 1 1 . 1 2 3 . Ballistic Gun 16 | 2 4 5 . . . . . . . . 5 . Ballistic Cannon 4 | . . . . . . . . . 1 . 3 . Launcher 12 | . . 4 . 2 3 . . 1 . 1 1 . Special Weapon 18 | . . . . . 3 6 . . 2 2 2 3 Impact Weapon . | . . . . . . . . . . . . . Slashing Weapon 7 | . . . . . 1 3 1 . 2 . . . Piercing Weapon 3 | . . . . . . . . . 2 . 1 . Special Melee Weapon . | . . . . . . . . . . . . . Unidentified Prototypes 1 | . . . . . . . . . . . 1 . Corrupted Parts 1 | . . . . . . . . . 1 . . . System Corruption 5 | . . . . . . . . . 5 . . . Parts Lost 102 | . 2 6 . . 20 9 2 . 16 16 28 3 Power 18 | . 1 1 . . 3 1 1 . 5 2 4 . Propulsion 32 | . 1 2 . . 7 . 1 . 6 7 8 . Utility 19 | . . 1 . . 4 1 . . 2 4 7 . Weapon 33 | . . 2 . . 6 7 . . 3 3 9 3 Highest Loss Streak 15 | . 2 5 . . 8 3 1 . 6 7 15 3 To Critical Strikes . | . . . . . . . . . . . . . Average Slot Usage (%) 86 | . 96 97 100 96 83 89 99 88 84 85 43 16 Engine 4 | . 14 4 14 13 2 . . . . . 1 . Core 4 | . . 9 . . 7 10 10 11 3 5 . . Reactor 1 | . . . . . . . . . 2 4 5 . Treads 19 | . 20 27 28 26 20 14 28 29 19 11 . . Wheel 2 | . 5 . . 1 1 9 . . 5 1 . . Device 8 | . 2 . . 10 12 9 8 11 7 9 7 5 Storage 7 | . 14 14 14 11 5 5 5 5 5 5 2 . Processor 6 | . . . . 2 5 11 11 11 11 10 6 10 Protection 4 | . 11 12 14 1 3 2 7 5 2 5 . . Energy Gun 3 | . . . . . 12 8 11 . 1 . 1 . Energy Cannon 1 | . . . . . . 2 1 . 2 6 2 . Ballistic Gun 3 | . 27 25 . . . . . . . . 7 . Launcher 7 | . . 2 28 27 4 . . . . . . . Special Weapon 1 | . . . . . . 6 . . 1 2 . . Slashing Weapon 3 | . . . . . 2 2 9 11 9 5 . . Peak Build Rating 115 | 6 12 15 14 33 96 84 84 90 85 115 90 34 Average Rating 50 | 4 10 13 13 21 76 70 80 73 73 90 40 22 On Entrance 43 | . 6 12 13 14 33 69 79 81 90 77 80 17 Naked Turns 1 | . . . . . . . . . . . 1 . Heaviest Build 117 | 11 36 38 38 45 94 103 101 100 117 108 98 2 Greatest Support 131 | 40 40 40 40 53 131 120 110 110 111 91 70 3 Greatest Overweight (x) 21 | . 3 1 . 10 21 5 1 . 4 6 15 . Average Overweight (x) . | . . . . . . 2 . . . 2 1 . Largest Inventory Capacity 20 | 8 15 15 15 15 20 20 20 20 20 20 20 5 Average Capacity 16 | 6 12 15 15 13 19 20 20 20 20 20 11 5 Most Carried 20 | 5 13 15 15 15 20 20 20 20 20 20 19 4 Average Carried 14 | 2 9 14 13 11 16 18 18 19 18 18 8 . Final Capacity 20 | 8 15 15 15 15 20 20 20 20 20 20 5 5 Final Carried 18 | 4 13 12 15 15 15 16 18 18 18 16 5 . Class Distribution -------------------- 26% | Mutant 23% | Cobbler-Mutant 14% | Derelict-Mutant 11% | Scavenger-Mutant 9% | Scavenger-Gunner 5% | Cobbler-Gunner Dominant Class ---------------- Mutant | -10/Materials Mutant | -10/Subcaves Mutant | -7/Recycling Derelict-Mutant | -7/Scraptown Scrapper | -5/Factory Scavenger-Gunner | -5/Upper Caves Cobbler-Mutant | -5/Upper Caves Cobbler-Mutant | -5/Warlord Cobbler-Mutant | -4/Proximity Caves Scavenger-Mutant | -4/Factory Scavenger-Gunner | -4/Upper Caves Mutant | -4/Upper Caves Resources | -11 -10 -10 -7 -7 -5 -5 -5 -5 -4 -4 -4 -4 ----------- Run | Yrd Mat Sub Rec Scr Fac Upp Upp War Pro Fac Upp Upp Matter Collected 8244 | 234 641 600 138 398 930 1817 409 20 1504 312 1241 . Remotely . | . . . . . . . . . . . . . Salvage Created 6438 | . 680 487 . . 1468 1417 459 . 882 758 287 . Parts 308 | . 46 34 . . 63 51 16 . 41 28 29 . Haulers Intercepted 3 | . 2 . . . 1 . . . . . . . Recyclers Shooed 2 | . . . . . 1 . . . . 1 . . Parts Field Recycled . | . . . . . . . . . . . . . Retrieved Matter . | . . . . . . . . . . . . . Parts Self-Destructed 73 | . . 10 . . . 12 2 . 29 . 20 . Prevented 42 | . . . . . . 18 10 . 8 . 6 . Kills | -11 -10 -10 -7 -7 -5 -5 -5 -5 -4 -4 -4 -4 ------- Run | Yrd Mat Sub Rec Scr Fac Upp Upp War Pro Fac Upp Upp Combat Hostiles Destroyed 101 | . 12 11 . . 25 14 5 . 13 13 8 . Melee 22 | . . . . . 4 2 1 . 12 3 . . Guns 36 | . 12 7 . . 5 4 3 . . . 5 . Cannons 5 | . . . . . . . . . 1 2 2 . AOE 23 | . . 4 . . 13 . . . . 6 . . Classes Destroyed 21 | . 7 4 . . 5 2 2 . 1 . . . Worker 6 | . 2 . . . 4 . . . . . . . Builder 7 | . . . . . 7 . . . . . . . Tunneler 3 | . 1 . . . . . . . . 2 . . Hauler 3 | . 2 . . . 1 . . . . . . . Recycler 2 | . . . . . 1 . . . . 1 . . Minesweeper 2 | . . . . . . . . . 2 . . . Mechanic 2 | . . . . . 2 . . . . . . . Operator 3 | . 2 . . . 1 . . . . . . . Turret 2 | . . 2 . . . . . . . . . . Watcher 8 | . 3 . . . 4 . . . . 1 . . Swarmer 32 | . 3 3 . . 5 3 . . 9 4 5 . Grunt 28 | . 9 2 . . 9 5 2 . . 1 . . Brawler 1 | . . . . . . . 1 . . . . . Sentry 3 | . . . . . . 1 . . 1 1 . . Hunter 16 | . . . . . 4 2 2 . 2 4 2 . Programmer 12 | . . . . . 7 2 . . . 3 . . Behemoth 3 | . . . . . . 1 . . 1 . 1 . Artisan 1 | . . 1 . . . . . . . . . . Cobbler 1 | . . 1 . . . . . . . . . . Subdweller 6 | . . 6 . . . . . . . . . . Decomposer 6 | . . . . . . 3 . . 1 . 2 . Samaritan 4 | . . . . . . . 2 . 2 . . . Best Kill Streak 8 | . 4 5 . . 7 3 2 . 5 8 5 . Combat Bots Only 7 | . 4 3 . . 5 3 2 . 5 7 5 . Max Kills in Single Turn 5 | . 1 2 . . 4 1 1 . 1 5 2 . Gunslinging . | . . . . . . . . . . . . . Exploded 5 | . . 2 . . 3 . . . . 5 . . Melee 1 | . . . . . 1 1 1 . 1 1 . . Uniques/NPCs Destroyed . | . . . . . . . . . . . . . Combat | -11 -10 -10 -7 -7 -5 -5 -5 -5 -4 -4 -4 -4 -------- Run | Yrd Mat Sub Rec Scr Fac Upp Upp War Pro Fac Upp Upp Hostile Shots Fired 1187 | . 70 66 . . 231 121 58 . 217 184 209 31 Missed 368 | . 11 23 . . 64 35 19 . 70 58 77 11 Damage Taken 15592 | . 721 982 . . 3190 1434 615 . 2555 2799 2899 397 Core 2045 | . 126 93 . . 284 128 . . 264 387 566 197 Absorbed by Shields 229 | . . . . . 37 . . . . 170 22 . Ignored by Resistances 122 | . . . . . . 28 16 . . 78 . . Regen/Repaired (Parts) 592 | . 318 . . 75 11 . . 188 . . . . Core Remaining (%) 48 | 100 . . . 12 . . . . 32 . . . Volleys Fired 369 | . 76 57 . . 83 44 18 . 23 27 39 2 Largest 4 | . 2 2 . . 4 4 2 . 2 2 4 1 Hottest 400 | . 46 66 . . 265 400 120 . 120 193 140 100 Shots Fired 712 | . 149 114 . . 128 136 38 . 28 36 81 2 Gun 527 | . 149 102 . . 101 62 38 . 18 4 53 . Cannon 66 | . . . . . . 5 . . 10 29 22 . Launcher 44 | . . 12 . . 27 . . . . 1 4 . Special 75 | . . . . . . 69 . . . 2 2 2 Kinetic 338 | . 149 102 . . 27 . . . 4 . 56 . Thermal 169 | . . . . . 56 77 . . 6 27 1 2 Explosive 12 | . . 12 . . . . . . . . . . Electromagnetic 175 | . . . . . 45 59 38 . 18 8 7 . Entropic 16 | . . . . . . . . . . 1 15 . Robot Hit Streak 17 | . 9 16 . . 10 17 6 . 5 7 7 3 Robot Miss Streak 5 | . 4 4 . . 4 4 4 . 2 2 5 . Penetration Max 1 | . . . . . . . . . . . 1 . Secondary Targets 3 | . 1 . . . . . 1 . . . 1 . Max Gunslinging Chain 1 | . 1 . . . . . 1 . . . 1 . Shots Hit Robots 553 | . 88 80 . . 88 105 29 . 66 46 49 2 Core Hits 251 | . 32 40 . . 64 40 10 . 24 25 16 . Critical Kills 3 | . . . . . . . . . . 2 1 . Critical Parts Destroyed 1 | . 1 . . . . . . . . . . . Critical Strikes 39 | . 1 . . . 3 11 1 . 10 12 1 . Burn 10 | . . . . . . 10 . . . . . . Meltdown 2 | . . . . . . . . . . 2 . . Destroy 2 | . 1 . . . . . . . . . 1 . Corrupt 6 | . . . . . . 1 . . 3 2 . . Sever 16 | . . . . . 3 . 1 . 7 5 . . Impale 3 | . . . . . . . . . . 3 . . Melee Attacks 166 | . . . . . 37 19 13 . 69 28 . . Impact . | . . . . . . . . . . . . . Slashing 160 | . . . . . 37 19 13 . 68 23 . . Piercing 6 | . . . . . . . . . 1 5 . . Sneak Attacks 17 | . . . . . 5 4 3 . 5 . . . Combat Hostiles 1 | . . . . . . 1 . . . . . . Follow-up Attacks 16 | . . . . . . . . . 9 7 . . Damage Inflicted 19432 | . 1356 1588 . . 5600 2869 930 . 2600 2478 1974 37 Guns 6566 | . 1353 984 . . 1828 884 488 . 171 65 793 . Cannons 1613 | . . . . . . . . . 167 910 536 . Explosions 4560 | . . 604 . . 2464 . . . 65 782 645 . Melee 6088 | . . . . . 1308 1425 442 . 2197 716 . . Ramming 8 | . 3 . . . . . . . . 5 . . Kinetic 5023 | . 1353 984 . . 2014 . . . 59 . 613 . Thermal 3076 | . . . . . 1593 605 . . 173 637 31 37 Explosive 604 | . . 604 . . . . . . . . . . Electromagnetic 2776 | . . . . . 685 839 488 . 171 363 230 . Impact . | . . . . . . . . . . . . . Slashing 5944 | . . . . . 1308 1425 442 . 2197 572 . . Piercing 144 | . . . . . . . . . . 144 . . Entropic 1857 | . . . . . . . . . . 757 1100 . Highest Corruption 19 | . . . . . 4 6 6 6 5 12 12 19 Average Corruption 7 | . . . . . 1 5 6 6 2 6 12 15 Corruption Purged 5 | . . . . . . . . . 5 . . . Corruption Blocked 15 | . . . . . . 15 . . . . . . Effects 318 | . . . . . 7 80 76 2 7 22 120 4 Message Errors 73 | . . . . . 4 20 19 . 1 1 28 . Matter Fused 87 | . . . . . 2 20 18 1 3 11 32 . Heat Flow Errors 47 | . . . . . . 15 14 1 . 3 14 . Energy Discharges 39 | . . . . . . 9 7 . 2 3 17 1 Parts Rejected 4 | . . . . . . 1 1 . . . 1 1 Parts Fused 2 | . . . . . . 1 . . . . 1 . Data Loss (minor) 31 | . . . . . . 8 7 . 1 2 13 . Data Loss (major) 12 | . . . . . . 2 4 . . 1 5 . Misfires 10 | . . . . . 1 3 3 . . . 3 . Alerts 7 | . . . . . . 1 2 . . 1 3 . Misdirections 2 | . . . . . . . . . . . . 2 Weapon Failures 4 | . . . . . . . 1 . . . 3 . Overload Shots 5 | . . . . . 5 . . . . . . . Overflow Damage 1324 | . . 8 . . 436 491 126 . 253 10 . . Projectiles 22 | . . . . . . 1 . . 11 10 . . Explosions 153 | . . 8 . . 145 . . . . . . . Melee 1149 | . . . . . 291 490 126 . 242 . . . Knockbacks . | . . . . . . . . . . . . . Impact . | . . . . . . . . . . . . . Kinetic . | . . . . . . . . . . . . . Secondary . | . . . . . . . . . . . . . Self-Inflicted Damage 59 | . . 9 . . 48 . . . . 2 . . Shots 3 | . . 1 . . 2 . . . . . . . Rammed 2 | . 1 . . . . . . . . 1 . . Targets Rammed 2 | . 1 . . . . . . . . 1 . . Kicked . | . . . . . . . . . . . . . Crushed . | . . . . . . . . . . . . . Highest Temperature 606 | . 255 1 . . 606 408 217 228 64 269 228 . Average Temperature 98 | . 53 1 . . 162 102 82 131 29 90 62 . Received Heat Transfer 1493 | . 378 144 . . 273 280 72 . 54 61 231 . Effects 13 | . 1 . . . 8 3 . 1 . . . . Shutdowns 6 | . . . . . 4 2 . . . . . . Energy Bleed 3 | . . . . . 1 1 . 1 . . . . Interference 2 | . 1 . . . 1 . . . . . . . Matter Decay 1 | . . . . . 1 . . . . . . . Short Circuit 1 | . . . . . 1 . . . . . . . Siege Activations . | . . . . . . . . . . . . . Robots Corrupted 9 | . . . . . 3 3 1 . . 1 1 . Combat Hostiles 8 | . . . . . 2 3 1 . . 1 1 . Parts Fried 26 | . . . . . 3 10 9 . 1 3 . . Impact Corruptions . | . . . . . . . . . . . . . Robots Melted 9 | . . . . . 1 6 . . . 2 . . Combat Hostiles 8 | . . . . . 1 6 . . . 1 . . Parts Melted 16 | . . . . . 4 6 . . . 6 . . Heat Transferred 8521 | . . . . . 2007 5570 . . 161 629 37 117 Parts Sabotaged . | . . . . . . . . . . . . . Parts Stolen . | . . . . . . . . . . . . . Parts Stripped . | . . . . . . . . . . . . . Power Chain Reactions 2 | . . . . . 1 . . . 1 . . . Alert | -11 -10 -10 -7 -7 -5 -5 -5 -5 -4 -4 -4 -4 ------- Run | Yrd Mat Sub Rec Scr Fac Upp Upp War Pro Fac Upp Upp Peak Influence 783 | . 292 . 21 . 783 . . . . 234 . . Initial 112 | . . . . . . . . . . 112 . . Average 167 | . 127 . 4 . 315 . . . . 119 . . Maximum Alert Level 3 | . 1 . . . 3 . . . . 1 . . Low Security (%) 68 | 100 69 . 100 . 41 . . . . 84 . . Level 1 21 | . 30 . . . 27 . . . . 15 . . Level 2 5 | . . . . . 16 . . . . . . . Level 3 4 | . . . . . 14 . . . . . . . Level 4 . | . . . . . . . . . . . . . Level 5 . | . . . . . . . . . . . . . High Security . | . . . . . . . . . . . . . Max Security . | . . . . . . . . . . . . . Squads Dispatched 15 | . 2 . . . 9 . . . . 4 . . Investigation 1 | . . . . . . . . . . 1 . . Extermination 5 | . . . . . 3 . . . . 2 . . Reinforcement 7 | . 2 . . . 5 . . . . . . . Assault . | . . . . . . . . . . . . . Garrison 2 | . . . . . 1 . . . . 1 . . Intercept . | . . . . . . . . . . . . . Searches Triggered . | . . . . . . . . . . . . . Construction Impeded 2 | . . . . . 2 . . . . . . . Haulers Reinforced . | . . . . . . . . . . . . . Active Scanning Responses . | . . . . . . . . . . . . . Cargo Convoy Interrupts . | . . . . . . . . . . . . . Stealth | -11 -10 -10 -7 -7 -5 -5 -5 -5 -4 -4 -4 -4 --------- Run | Yrd Mat Sub Rec Scr Fac Upp Upp War Pro Fac Upp Upp Distress Signals 3 | . 1 . . . 1 . . . . 1 . . Communications Jammed . | . . . . . . . . . . . . . Distress Signals . | . . . . . . . . . . . . . Times Spotted 166 | . 24 15 . . 34 19 8 1 30 20 13 2 Peak Tracking Total 7 | . 5 4 . . 7 3 3 1 5 7 5 2 Tactical Retreats 29 | . 3 1 . . 2 2 2 . 13 2 4 . Traps | -11 -10 -10 -7 -7 -5 -5 -5 -5 -4 -4 -4 -4 ------- Run | Yrd Mat Sub Rec Scr Fac Upp Upp War Pro Fac Upp Upp Traps Triggered 2 | . . . . . . . . . . 2 . . Indirectly . | . . . . . . . . . . . . . Trap Hack Attempts . | . . . . . . . . . . . . . Triggered . | . . . . . . . . . . . . . Disarmed . | . . . . . . . . . . . . . Reprogrammed . | . . . . . . . . . . . . . Reused . | . . . . . . . . . . . . . Traps Extracted . | . . . . . . . . . . . . . Installed . | . . . . . . . . . . . . . Triggered 19 | . . . . . . . . 15 4 . . . Most Traps Carried 1 | . . . . . . . . . . . 1 . Machines | -11 -10 -10 -7 -7 -5 -5 -5 -5 -4 -4 -4 -4 ---------- Run | Yrd Mat Sub Rec Scr Fac Upp Upp War Pro Fac Upp Upp Machines Disabled 21 | . 1 4 . . 12 1 1 . . 2 . . Max in Single Turn 3 | . 1 2 . . 3 1 1 . . 2 . . Machines Repaired 3 | . . . . . 3 . . . . . . . Machines Dismantled . | . . . . . . . . . . . . . Machines Sabotaged . | . . . . . . . . . . . . . Overloaded Fab Kills . | . . . . . . . . . . . . . Hacking | -11 -10 -10 -7 -7 -5 -5 -5 -5 -4 -4 -4 -4 --------- Run | Yrd Mat Sub Rec Scr Fac Upp Upp War Pro Fac Upp Upp Machines Accessed 50 | . 8 . 13 9 7 1 2 6 . 3 1 . Terminals 23 | . 7 . 6 . 6 . 1 . . 3 . . Fabricators . | . . . . . . . . . . . . . Repair Stations 2 | . 1 . . . 1 . . . . . . . Recycling Units 5 | . . . 5 . . . . . . . . . Scanalyzers . | . . . . . . . . . . . . . Garrison Access . | . . . . . . . . . . . . . Total Hacks 156 | . 28 . 33 49 17 1 2 17 . 8 1 . Successful 117 | . 18 . 17 49 8 1 2 17 . 4 1 . Failed 39 | . 10 . 16 . 9 . . . . 4 . . Catastrophic 4 | . . . 2 . 1 . . . . 1 . . Database Lockouts . | . . . . . . . . . . . . . Manual 41 | . 18 . 6 . 11 . . . . 6 . . Terminals 58 | . 21 . 13 . 15 . 1 . . 8 . . Fabricators . | . . . . . . . . . . . . . Repair Stations 9 | . 7 . . . 2 . . . . . . . Recycling Units 12 | . . . 12 . . . . . . . . . Scanalyzers . | . . . . . . . . . . . . . Garrison Access . | . . . . . . . . . . . . . Terminal Hacks 93 | . 7 . 11 49 3 1 2 17 . 2 1 . Record 60 | . . . 7 41 . . 2 10 . . . . Part Schematic 1 | . . . 1 . . . . . . . . . Robot Schematic 1 | . 1 . . . . . . . . . . . Robot Analysis 11 | . 3 . . 8 . . . . . . . . Prototype ID Bank 5 | . . . . . . . . 5 . . . . Open Door 4 | . . . . . . 1 . 2 . . 1 . Branch Access Points 3 | . . . 1 . 1 . . . . 1 . . Emergency Access Points 1 | . . . . . 1 . . . . . . . Terminal Index 3 | . 1 . . . 1 . . . . 1 . . Locate Traps 2 | . 2 . . . . . . . . . . . Zone Layout 1 | . . . 1 . . . . . . . . . Release Object 1 | . . . 1 . . . . . . . . . Fabricator Hacks . | . . . . . . . . . . . . . Repair Station Hacks 7 | . 6 . . . 1 . . . . . . . Scan Component 4 | . 3 . . . 1 . . . . . . . Repair 3 | . 3 . . . . . . . . . . . Recycling Unit Hacks 5 | . . . 5 . . . . . . . . . Report Inventory 3 | . . . 3 . . . . . . . . . Retrieve Components 2 | . . . 2 . . . . . . . . . Scanalyzer . | . . . . . . . . . . . . . Garrison Access Hacks . | . . . . . . . . . . . . . Unauthorized Hacks 12 | . 5 . 1 . 4 . . . . 2 . . Terminals 11 | . 5 . . . 4 . . . . 2 . . Track 1 | . . . . . 1 . . . . . . . Botnet 9 | . 5 . . . 2 . . . . 2 . . Operators 1 | . . . . . 1 . . . . . . . Fabricators . | . . . . . . . . . . . . . Repair Stations . | . . . . . . . . . . . . . Recycling Units 1 | . . . 1 . . . . . . . . . Reject 1 | . . . 1 . . . . . . . . . Scanalyzers . | . . . . . . . . . . . . . Garrison Access . | . . . . . . . . . . . . . Data Cores Recovered . | . . . . . . . . . . . . . Used . | . . . . . . . . . . . . . Hacking Detections 23 | . 7 . 8 . 5 . . . . 3 . . Full Trace Events 1 | . . . . . . . . . . 1 . . Feedback Events . | . . . . . . . . . . . . . Feedback Blocked . | . . . . . . . . . . . . . Robot Schematics Acquired 1 | . 1 . . . . . . . . . . . Robots Built . | . . . . . . . . . . . . . Authchips . | . . . . . . . . . . . . . Time . | . . . . . . . . . . . . . Total Robot Build Rating . | . . . . . . . . . . . . . Part Schematics Acquired 1 | . . . 1 . . . . . . . . . Parts Built . | . . . . . . . . . . . . . Authchips . | . . . . . . . . . . . . . Time . | . . . . . . . . . . . . . Total Part Build Rating . | . . . . . . . . . . . . . Parts Repaired 3 | . 3 . . . . . . . . . . . Time 96 | . 96 . . . . . . . . . . . Parts Recycled . | . . . . . . . . . . . . . Recycled Matter . | . . . . . . . . . . . . . Retrieved Matter . | . . . . . . . . . . . . . Retrieved Components 4 | . . . 4 . . . . . . . . . Parts Scanalyzed . | . . . . . . . . . . . . . Part Schematics Acquired . | . . . . . . . . . . . . . Parts Damaged . | . . . . . . . . . . . . . Bothacking | -11 -10 -10 -7 -7 -5 -5 -5 -5 -4 -4 -4 -4 ------------ Run | Yrd Mat Sub Rec Scr Fac Upp Upp War Pro Fac Upp Upp Used RIF Installer . | . . . . . . . . . . . . . Robots Hacked . | . . . . . . . . . . . . . Non-combat . | . . . . . . . . . . . . . Combat . | . . . . . . . . . . . . . Robot Hacks Applied . | . . . . . . . . . . . . . Relay Couplers Released . | . . . . . . . . . . . . . Fabnet Peak Effective % . | . . . . . . . . . . . . . Robots Rewired 2 | . . . . . . 2 . . . . . . Allies Hacked . | . . . . . . . . . . . . . Hacks Repelled . | . . . . . . . . . . . . . Allies | -11 -10 -10 -7 -7 -5 -5 -5 -5 -4 -4 -4 -4 -------- Run | Yrd Mat Sub Rec Scr Fac Upp Upp War Pro Fac Upp Upp Total Allies 3 | . . . . . . 2 . . 1 . . . Largest Group 1 | . . . . . . 1 . . 1 1 . . Highest-Rated Group 63 | . . . . . . 53 . . 63 63 . . Highest-Rated Ally 63 | . . . . . . 53 . . 63 63 . . Total Orders 3 | . . . . . . . . . . . 3 . EXPLORE 2 | . . . . . . . . . . . 2 . RETURN 1 | . . . . . . . . . . . 1 . Ally Attacks 23 | . . . . . . 6 . . 5 12 . . Total Damage 432 | . . . . . . 194 . . 88 150 . . Kills 5 | . . . . . . 1 . . 3 1 . . Allies Corrupted . | . . . . . . . . . . . . . Allies Melted . | . . . . . . . . . . . . . Intel | -11 -10 -10 -7 -7 -5 -5 -5 -5 -4 -4 -4 -4 ------- Run | Yrd Mat Sub Rec Scr Fac Upp Upp War Pro Fac Upp Upp Robot Analysis Total 11 | . 3 . . 8 . . . . . . . . Derelict Logs Recovered 8 | . . 1 . 1 . 2 2 . 1 . 1 . Drone Launches 2 | . . . . . . . . . . . 2 . Drone Recoveries 1 | . . . . . . . . . . . 1 . Exploration | -11 -10 -10 -7 -7 -5 -5 -5 -5 -4 -4 -4 -4 ------------- Run | Yrd Mat Sub Rec Scr Fac Upp Upp War Pro Fac Upp Upp Turns Passed 29971 | 93 1763 1739 862 6514 1948 2853 2675 1214 5594 1233 3429 54 Spaces Moved 13889 | 55 755 953 531 2770 908 1520 1544 726 1923 471 1663 70 Core 913 | 7 . . . 23 3 . . . . . 810 70 Treads 9472 | 48 691 953 531 2448 779 189 1544 726 1335 228 . . Legs 604 | . . . . . . . . . . 14 590 . Wheels 2830 | . 64 . . 299 126 1331 . . 588 159 263 . Hover 70 | . . . . . . . . . . 70 . . Flight . | . . . . . . . . . . . . . Fastest Speed 50 | 50 125 160 160 110 105 120 160 160 120 175 50 50 Average Speed 164 | 146 184 160 160 156 166 130 165 160 179 219 172 50 Slowest Speed 1100 | 160 240 240 160 550 1100 320 260 160 340 330 800 50 Overloaded Moves . | . . . . . . . . . . . . . Propulsion Burnouts . | . . . . . . . . . . . . . Robots Hopped . | . . . . . . . . . . . . . Cave-ins Triggered 1 | . . . . . . . . . . 1 . . Exploration Rate (%) 65 | 4 99 38 84 96 26 96 97 93 92 12 96 13 Regions Visited 12 Branch Regions 9 Pre-discovered Areas 4 | . . 1 . 2 . 1 . . . . . . Known Exits Taken 3 | . . . . . 1 . . . 1 1 . . Unknown Exits Taken 9 | 1 1 1 1 1 . 1 1 1 . . 1 . Scrap Searched 26 | . . 3 . 9 . 5 4 . 1 . 4 . Spaces Dug 77 | . . 36 . . 36 . . . . 5 . . Terrain Destroyed 360 | . . 85 . . 202 3 . . 10 10 50 . Melee 6 | . . . . . 3 . . . . 3 . . Projectile 30 | . . . . . 11 3 . . 5 6 5 . AOE 324 | . . 85 . . 188 . . . 5 1 45 . Terrain Rammed . | . . . . . . . . . . . . . Walls Destroyed . | . . . . . . . . . . . . . Machines Disabled . | . . . . . . . . . . . . . Actions | -11 -10 -10 -7 -7 -5 -5 -5 -5 -4 -4 -4 -4 --------- Run | Yrd Mat Sub Rec Scr Fac Upp Upp War Pro Fac Upp Upp Total 20216 | 65 1003 1065 544 4951 1173 2206 1614 782 3968 599 2160 86 Wait 5235 | . 139 35 11 2122 79 512 25 47 1847 40 370 8 Move 13877 | 54 754 952 530 2769 907 1519 1543 725 1922 470 1662 70 Hop . | . . . . . . . . . . . . . Pick Up 123 | 5 12 4 3 22 13 11 5 3 24 8 13 . Fast Attach 106 | 5 6 1 . 5 11 14 2 . 27 12 23 . Attach 110 | 1 1 5 . 4 17 19 1 1 15 11 30 5 Detach 31 | . . . . 3 1 11 . 2 7 1 6 . Swap 57 | . 7 8 . 6 16 11 3 . 3 1 2 . Drop 134 | . 7 3 . 20 2 27 4 4 43 8 15 1 Fire 369 | . 76 57 . . 83 44 18 . 23 27 39 2 Melee 146 | . . . . . 37 19 13 . 57 20 . . Ram 1 | . . . . . . . . . . 1 . . Kick . | . . . . . . . . . . . . . Crush 1 | . 1 . . . . . . . . . . . Escape Stasis . | . . . . . . . . . . . . . Rewire 19 | . . . . . . 19 . . . . . . Trap . | . . . . . . . . . . . . . Miscellaneous 7 | . . . . . 7 . . . . . . . Route ------- -11/Scrapyard -10/Materials (discovered 6 exits: [*Mat x3] / [*Min x2] / [*Sub]) -10/Subcaves (discovered 2 exits: [*Mat] / *Rec) -7/Recycling (discovered 2 exits: *Fac / *Scr) -7/Scraptown (discovered 2 exits: *Fac x2) -5/Factory (discovered 4 exits: *Fac x2 / *Upp x2) -5/Upper Caves -5/Upper Caves (discovered 2 exits: *Fac / *War) -5/Warlord -4/Proximity Caves -4/Factory (discovered 4 exits: *Upp x2 / *Ext x2) -4/Upper Caves -4/Upper Caves History --------- Turn | Location | Event 4 | -11/Scrapyard | Discovered new exit (range 14) 94 | -11/Scrapyard | Entered Materials 314 | -10/Materials | Build established: Mutant 362 | -10/Materials | Discovered new exit (range 10) 606 | -10/Materials | Discovered new exit (range 7) 824 | -10/Materials | Discovered new exit (range 11) 977 | -10/Materials | Core integrity fell below 50% 1225 | -10/Materials | Repaired Autogun 1259 | -10/Materials | Repaired Hrd. Light Armor Plating 1292 | -10/Materials | Repaired Autogun 1368 | -10/Materials | Discovered new exit (range 15) 1774 | -10/Materials | Discovered new exit (range 8) 1844 | -10/Materials | Discovered new exit (range 8) 1857 | -10/Materials | Entered Subcaves 2035 | -10/Subcaves | Learned location of Zion (-6) 2035 | -10/Subcaves | Met a Zionite searching for "candidates" 2177 | -10/Subcaves | Discovered new exit (range 14) 2537 | -10/Subcaves | A swath of the cavern ceiling suddenly collapsed 2683 | -10/Subcaves | Disturbed a concealed Subdweller 2868 | -10/Subcaves | Discovered new exit (range 14) 2869 | -10/Subcaves | Core integrity fell below 20% 3236 | -10/Subcaves | Lost 5 parts (2n1u2w) 3295 | -10/Subcaves | Learned Materials garrison access intel 3596 | -10/Subcaves | Entered Recycling 3597 | -7/Recycling | Joined Warlord attack on 0b10 via Recycling 3903 | -7/Recycling | Discovered new exit (range 14) 4410 | -7/Recycling | Scanned before Scraplab entrance 4433 | -7/Recycling | Entered Scraplab 4455 | -7/Recycling | Discovered new exit (range 3) 4458 | -7/Recycling | Entered Scraptown 5006 | -7/Scraptown | Discovered new exit (range 3) 5076 | -7/Scraptown | Scanned Subdweller tech in exchange for log data 5080 | -7/Scraptown | Learned 12 Factory zone layouts 5345 | -7/Scraptown | Visited The Evicted 5461 | -7/Scraptown | Visited Bundlers 5481 | -7/Scraptown | Build established: Derelict-Mutant 5518 | -7/Scraptown | Visited Shadow of the Wyrm 5967 | -7/Scraptown | Visited CR-KLE's Repair Center 6140 | -7/Scraptown | Build established: Mutant 6323 | -7/Scraptown | Visited Comm Corps 6394 | -7/Scraptown | Visited Cyclists 6456 | -7/Scraptown | Build established: Derelict-Mutant 6511 | -7/Scraptown | Visited SPCMW 6892 | -7/Scraptown | Visited UFD Registry 6892 | -7/Scraptown | Registered with UFD as "Flakgunner" 6924 | -7/Scraptown | Visited Botcube Research 6940 | -7/Scraptown | Found Botcube 6978 | -7/Scraptown | Visited Observation Area 7037 | -7/Scraptown | Visited Research Penetration Think Tank 7109 | -7/Scraptown | Delivered Scrap Shield to a Scientist 8927 | -7/Scraptown | Visited Curators Association 9003 | -7/Scraptown | Visited Analyses Database 9171 | -7/Scraptown | Visited Chapter 10 9226 | -7/Scraptown | Visited LU-1G1's Boring Crew 9489 | -7/Scraptown | Visited Abandonware Association 9501 | -7/Scraptown | Learned abandonware demo "OVRCLOCK.EXE" 9514 | -7/Scraptown | Learned abandonware demo "SHUTEYE.EXE" 9656 | -7/Scraptown | Visited Modified Component R&D 9902 | -7/Scraptown | Visited A0-MCA Data Center 9917 | -7/Scraptown | Given a C rating by A0-MCA 9929 | -7/Scraptown | Found A0-MCA's Component Scanner 9994 | -7/Scraptown | Build established: Mutant 10387 | -7/Scraptown | Entered Cyclist Reading Room 10451 | -7/Scraptown | CR-KLE repaired 2 parts 10804 | -7/Scraptown | Discovered new exit (range 3) 10913 | -7/Scraptown | Found Scrap Suit 10972 | -7/Scraptown | Entered Factory 10972 | -5/Factory | Evolved 10 slots: Power x1, Propulsion x3, Utility x4, Weapon x2 10973 | -5/Factory | Identified exit to Upper Caves 10973 | -5/Factory | Identified exit to Factory 11927 | -5/Factory | Discovered exit to Factory (range 14) 12170 | -5/Factory | Build established: Scrapper 12316 | -5/Factory | Garrison activated, responded to threat 12477 | -5/Factory | Lost 3 parts (1p1n1u) 12655 | -5/Factory | Lost 8 parts (1p3n1u3w) 12906 | -5/Factory | Lost 3 parts (1n1u1w) 12920 | -5/Factory | Entered Upper Caves 12922 | -5/Upper Caves | UFD Scientist delivered a prototype 12924 | -5/Upper Caves | Found Enh. Scrap Shield 13007 | -5/Upper Caves | Spotted B-75 Beast 13082 | -5/Upper Caves | Destroyed B-75 Beast 13207 | -5/Upper Caves | Build established: Scavenger-Gunner 13538 | -5/Upper Caves | Build established: Scavenger-Mutant 13768 | -5/Upper Caves | Discovered new exit (range 5) 13847 | -5/Upper Caves | Build established: Scavenger-Gunner 14130 | -5/Upper Caves | Learned Factory stockpile data 14142 | -5/Upper Caves | Learned location of Armory (-3) 14154 | -5/Upper Caves | Build established: Cobbler-Gunner 14286 | -5/Upper Caves | Attracted the attention of an 0b10 checkpoint 14413 | -5/Upper Caves | Attacked by a delusional Derelict stockpiling parts 14526 | -5/Upper Caves | Lost 3 parts (3w) 14881 | -5/Upper Caves | Build established: Scavenger-Gunner 15773 | -5/Upper Caves | Entered another Upper Caves area 15937 | -5/Upper Caves | Discovered exit to Factory (range 9) 16071 | -5/Upper Caves | Build established: Cobbler-Tank 16690 | -5/Upper Caves | Build established: Cobbler-Mutant 17100 | -5/Upper Caves | Learned Factory emergency access door positions 17289 | -5/Upper Caves | Discovered new exit (range 6) 17380 | -5/Upper Caves | Learned Factory security intel 17888 | -5/Upper Caves | Found Alien Artifact 18448 | -5/Upper Caves | Entered Warlord 18542 | -5/Warlord | System corruption cleaned by Quarantine Array 19259 | -5/Warlord | Visited the Vortex Lab 19264 | -5/Warlord | Warlord's base attacked by MAIN.C 19282 | -5/Warlord | Found Vortex Catalyst Activator 19287 | -5/Warlord | Found Vortex Rifle 19290 | -5/Warlord | Found Vortex Rifle 19385 | -5/Warlord | Rebuked by Warlord 19565 | -5/Warlord | Opened side exit 19614 | -5/Warlord | Warlord forces counterattacked 19651 | -5/Warlord | Discovered new exit (range 8) 19662 | -5/Warlord | Entered Proximity Caves 20007 | -4/Proximity Caves | Spotted B-86 Titan 20724 | -4/Proximity Caves | Destroyed B-86 Titan 20774 | -4/Proximity Caves | Learned Research trap positions 20847 | -4/Proximity Caves | Core integrity fell below 50% 21587 | -4/Proximity Caves | Attracted the attention of an 0b10 checkpoint 21651 | -4/Proximity Caves | Lost 6 parts (1p4n1u) 22336 | -4/Proximity Caves | Lost 4 parts (1p1n1u1w) 24197 | -4/Proximity Caves | Build established: Scavenger-Mutant 24347 | -4/Proximity Caves | Botcube activated 24369 | -4/Proximity Caves | Botcube completed mutation into legged form, armed with 2 special weapons. 25116 | -4/Proximity Caves | Discovered exit to Factory (range 10) 25256 | -4/Proximity Caves | Entered Factory 25256 | -4/Factory | Accompanied by 1 ally 25256 | -4/Factory | Evolved 2 slots: Propulsion x1, Utility x1 25384 | -4/Factory | Discovered new exit (range 8) 25744 | -4/Factory | Garrison activated, responded to threat 25883 | -4/Factory | Lost 6 parts (1p1n3u1w) 25966 | -4/Factory | Identified exit to Upper Caves 25966 | -4/Factory | Identified exit to Extension 26086 | -4/Factory | Crushed by falling debris 26086 | -4/Factory | System corruption reached 10% 26102 | -4/Factory | Destroyed 7 combat bots 26117 | -4/Factory | Lost 7 parts (1p4n2w) 26441 | -4/Factory | Build established: Scavenger-Tank 26489 | -4/Factory | Entered Upper Caves 26519 | -4/Upper Caves | Released all parts (11) 26537 | -4/Upper Caves | Lost 7 parts (2p1n2u2w) 26599 | -4/Upper Caves | Identified Dimensional Node Initializer 26599 | -4/Upper Caves | Initialized slip node 26767 | -4/Upper Caves | Learned 4 Research zone layouts 26807 | -4/Upper Caves | Build established: Scavenger-Mutant 27278 | -4/Upper Caves | Build established: Scavenger-Gunner 27639 | -4/Upper Caves | Discovered new exit (range 8) 27863 | -4/Upper Caves | Spotted B-86 Titan 27941 | -4/Upper Caves | Core integrity fell below 50% 27986 | -4/Upper Caves | Lost 15 parts (1p5n4u5w) 28181 | -4/Upper Caves | Build established: Mutant 28921 | -4/Upper Caves | Build established: Cobbler-Gunner 29562 | -4/Upper Caves | Destroyed B-86 Titan 29652 | -4/Upper Caves | Attracted the attention of an 0b10 checkpoint 29660 | -4/Upper Caves | Core integrity fell below 20% 29694 | -4/Upper Caves | Lost 3 parts (1n2w) 29918 | -4/Upper Caves | Entered another Upper Caves area 29950 | -4/Upper Caves | Build established: Mutant 29959 | -4/Upper Caves | Lost 3 parts (3w) 29972 | -4/Upper Caves | Destroyed by P-70 Sage with High-powered Shock Rifle Last Messages --------------- 29660_ Acquired 49 matter. 29663_ Mak. Spear destroyed. 29663_ Slug penetrates Wall. 29674_ System corrupted: Matter fused (-10). 29698_ System corrupted: Component data lost. 29801_ System corrupted: Matter fused (-8). 29809_ Acquired Com. Wheel. 29818_ Acquired 3 matter. 29837_ System corrupted: Energy discharge (-22). 29857_ % SLUR10HOSEE9C3B0NL>&7N6UPOJIIYR 29897_ System corrupted: Heat flow error (+121). LOCATION=UNKNOWN GOAL=ESCAPE 29921_ Flamer destroyed. 29924_ Plasma Flamer destroyed. 29926_ System corrupted: Com. Wheel rejected. 29928_ Imp. Plasma Cutter destroyed. 29929_ Dropped Antimatter Reactor. 29932_ P-70 Sage resets P-70 Sage, system corruption cleaned. 29944_ System corrupted: Energy discharge (-30). Map ----- +----------------------------------------------------+ | ?????????????????????????# #?????????????? | | ?????????????????????????# = #??????????????? | | ???????????????????????#### * ########???????? | | ??????????????????????? ## #???????? | | ???????????????????????# ## ##### #???????? | | ???????????????????????# #### ##??????????????? | | ?????????????????####### #??## ##???????????????? | | ????????????????## ##### ### #???????? | | ???????????????## #??????? | | ??????????????## #### ???? | | ?????????????## ## ###### ???? | | ?????????????# ## #?? ????? | | ?????????????# #??###### ????? | | ???????#####??# ### ## #????????? ?????? | | ??????## ##???#### ##??#??????????? ????? | | ??????# ##### ##??????????????? ?????? | | ??????# ##????????????????????? | | ??????# #### ##???????????????????? | | ??????# ### ##??## ##??????????????????? | | ?????## #?# ##????# ##?????????????????? | | ????## ######?????# #?????????????????? | | ????# ##?####?### ##?????????????????? | | ????# ### ### ##??????????????????? | | ????# ## ##### #???????????? | | ????# #???????????? | | ????## ## @ #???????????? | | ?????## ####?# ### ####???????????????? | | ??????##??#### ##???? #??????????????????? | | ?????????## p ##?????????????????????????? | | ?????????# ##p ##??????????????????????????? | | ?????????## ### ##???????????????????????????? | | ?????????## ### #????????????????????????????? | | ?????????# #?# ##????????????????????????????? | | ?????????# #?## #?????????????????????????????? | | ?????????# #??#####?????????????????????????????? | | ?????????# #????????????????????????????????????? | | ?????????## #????????????????????????????????????? | | ??????????###????????????????????????????????????? | | ?????????????????????????????????????????????????? | | ?????????????????????????????????????????????????? | | ?????????????????????????????????????????????????? | | ?????????????????????????????????????????????????? | | ?????????????????????????????????????????????????? | | ?????????????????????????????????????????????????? | | ?????????????????????????????????????????????????? | | ?????????????????????????????????????????????????? | | ?????????????????????????????????????????????????? | | ?????????????????????????????????????????????????? | | ?????????????????????????????????????????????????? | | ?????????????????????????????????????????????????? | +----------------------------------------------------+ Best States ------------- Heat Dissipation 74 Energy Generation 37 Energy Capacity 530 Matter Stores 300 Matter Capacity 300 Sight Range 21 Terrain Scan Range 16 Terrain Scan Density 10 EM Shielding 3 Corruption Block 15 Armor Coverage 950 Resistance: TH 30 Phase Shifting 10 Evasion (%) 50 Targeting Accuracy 6 Target Analysis 6 Armor Integrity Analysis 40 Recoil Reduction 5 Item Schematics ----------------- Imp. Shield Generator | -7/Recycling | Hacked Robot Schematics ------------------ M-13 Machinist | -10/Materials | Hacked Fabricated ------------ Nothing Alien Tech Used ----------------- Dimensional Node Initializer Achievements -------------- None Challenges ------------ None Game ------ Seed RefinerySensorSlayer Manual? 0 Play Time 03:50:07 Cumulative 453.7 hours Start 2025.04.27 @ 15:06:21 End 2025.04.27 @ 20:06:32 Sessions 1 Manual Loads 0 Difficulty Rogue Special Mode None Game No. 286 Rogue 283 Adventurer 3 Explorer 0 Win Type - Total 8 Types 7/0/1/0/0/0/0/0/0 Lore% 60 Gallery% 74 Achievement% 67 Wizard Run 0 Options --------- Layout 0 ASCII 0 Keyboard 0 Movement Numpad Keybinds 0 Fullscreen 1 Font 18/SmallcapsGlow Map View 76x50 Zoom Use 0% Tactical HUD 1 Map Filters NONE Filters NONE Steam 1 RUN: 1588a289-558b-4776-a66a-ea409be48bf1